bitfinex/quotes_ETHUSD_20250801
["timestamp","ask_amount","ask_price","bid_price","bid_amount"]
[1754062258241,5.0004,3594.6,3593.2,0.002]
[1754062258442,2.7824082,3594.1,3593.4,2.78287555]
[1754062258651,4.558,3594.0,3593.4,2.78287555]
[1754062258859,4.558,3594.0,3593.2,0.002]
[1754062259012,1.28579406,3594.6,3594.3,2.78216007]
[1754062259217,4.558,3594.5,3594.2,2.78220911]
[1754062259416,4.558,3594.4,3594.2,2.78220911]
[1754062259614,1.0076,3594.3,3593.4,3.0]
[1754062259857,0.55,3594.0,3593.3,3.0]
[1754062260022,4.558,3593.9,3593.3,2.78295087]
[1754062260244,4.558,3593.9,3593.8,5.78256998]
[1754062260746,1.01221242,3594.3,3593.8,0.5742]
[1754062260747,4.558,3594.3,3593.8,0.5742]
[1754062260960,4.558,3594.3,3594.2,5.7822603]
[1754062261244,4.558,3594.6,3594.4,3.0]
[1754062261444,4.558,3594.6,3594.3,2.7821829]
[1754062261445,0.5652,3595.3,3594.5,3.5742]
[1754062261758,4.558,3595.2,3595.1,2.7814896]
[1754062262349,4.558,3595.2,3594.3,0.5742]
[1754062262557,4.558,3595.2,3595.1,2.78156379]
[1754062262986,0.001,3595.6,3595.5,2.78125434]
[1754062262987,4.559,3595.6,3595.5,2.78125434]
[1754062263660,0.001,3595.6,3595.5,5.78125434]
[1754062263873,1e-08,3595.6,3595.5,6.55615434]
[1754062264078,1e-08,3595.6,3595.5,34.75204934]
[1754062264478,1e-08,3595.6,3595.5,15.95995912]
[1754062264654,1e-08,3595.6,3595.5,6.56519912]
[1754062265060,1e-08,3595.6,3595.5,5.99099912]
[1754062265265,1e-08,3595.6,3595.5,22.05726612]
[1754062265460,1e-08,3595.6,3595.5,22.25796612]
[1754062266509,1e-08,3595.6,3595.5,11.57748212]
[1754062267576,1e-08,3595.6,3595.5,10.94836712]
[1754062267790,1e-08,3595.6,3595.5,11.08756712]
[1754062268190,1e-08,3595.6,3595.5,9.96431812]
[1754062268363,1e-08,3595.6,3595.5,14.52031812]
[1754062268799,1e-08,3595.6,3595.5,14.72101812]
[1754062269006,1e-08,3595.6,3595.5,14.67101812]
[1754062269228,1e-08,3595.6,3595.5,27.10443412]
[1754062269668,1e-08,3595.6,3595.5,21.50787912]
[1754062269872,1e-08,3595.6,3595.5,20.39957212]
[1754062270176,1e-08,3595.6,3595.5,20.94957212]
[1754062272822,1e-08,3595.6,3595.5,20.94757212]
[1754062273018,1e-08,3595.6,3595.5,15.84357212]
[1754062273202,0.001,3597.3,3595.6,33.0]
[1754062273401,0.001,3597.3,3597.2,35.91913995]
[1754062273719,0.001,3597.3,3597.2,40.47213995]
[1754062273878,0.001,3597.3,3597.2,41.04633995]
[1754062274315,0.001,3597.7,3597.6,2.77963086]
[1754062274515,0.001,3597.7,3597.6,40.36042716]
[1754062274675,0.001,3597.7,3597.6,40.33263086]
[1754062274880,1e-08,3597.7,3597.6,40.90683086]
[1754062275178,1e-08,3597.7,3597.6,41.45683086]
[1754062275380,1e-08,3597.7,3597.6,48.91353261]
[1754062275816,1e-08,3597.7,3597.6,18.91353261]
[1754062276001,1e-08,3597.7,3597.6,48.91253261]
[1754062277123,1e-08,3597.7,3597.6,18.91253261]
[1754062277425,1e-08,3597.7,3597.6,44.56724959]
[1754062277607,1e-08,3597.7,3597.6,49.11924959]
[1754062277993,1e-08,3597.7,3597.6,44.56724959]
[1754062278213,1e-08,3597.7,3597.6,49.11824959]
[1754062278414,1e-08,3597.7,3597.6,44.56724959]
[1754062278598,1e-08,3597.7,3597.6,49.11724959]
[1754062279352,1e-08,3597.7,3597.6,37.45044784]
[1754062279554,1e-08,3597.7,3597.6,19.88175384]
[1754062279741,1e-08,3597.7,3597.6,41.40374784]
[1754062279942,1e-08,3597.7,3597.6,41.95374784]
[1754062280450,1e-08,3597.7,3597.6,33.04339284]
[1754062280641,1e-08,3597.7,3597.6,23.46455484]
[1754062280949,1e-08,3597.7,3597.6,18.91455484]
[1754062281149,1e-08,3597.7,3597.6,16.08092884]
[1754062281351,1e-08,3597.7,3597.6,31.93639584]
[1754062281665,1e-08,3597.7,3597.6,6.68128784]
[1754062281815,1.01460001,3597.7,3597.6,11.23028784]
[1754062282015,1e-08,3597.7,3597.6,14.23028784]
[1754062282233,1e-08,3597.7,3597.6,15.30778784]
[1754062282771,0.001,3599.3,3599.2,27.12887119]
[1754062283075,1e-08,3599.7,3599.2,34.67787119]
[1754062283228,1e-08,3599.7,3599.6,35.77808645]
[1754062283567,1e-08,3599.7,3599.6,40.87608645]
[1754062283720,1e-08,3599.7,3599.6,11.54278645]
[1754062283916,0.001,3601.4,3601.3,5.77677505]
[1754062284220,0.001,3601.4,3601.3,10.32477505]
[1754062284425,0.001,3601.4,3601.3,10.43994805]
[1754062284624,0.001,3601.4,3601.3,3.0]
[1754062284930,1.0156,3601.4,3601.3,3.0]
[1754062285255,1.1548,3601.4,3601.3,3.0]
[1754062285460,1.1548,3601.4,3601.3,10.0]
[1754062285661,1.0156,3601.4,3601.3,12.77677505]
[1754062285826,0.001,3601.4,3601.3,17.32377505]
[1754062286023,0.001,3601.4,3601.3,37.39158305]
[1754062286356,0.001,3601.4,3601.3,26.35993405]
[1754062286526,0.001,3601.4,3601.3,21.18826705]
[1754062287066,0.001,3601.4,3601.3,19.37087305]
[1754062287356,0.001,3601.4,3601.3,17.46467505]
[1754062287660,1.0156,3601.4,3601.3,3.0]
[1754062287862,1.1548,3601.4,3600.5,4.546]
[1754062288071,0.1392,3601.0,3600.5,4.6852]
[1754062288269,1.0146,3600.9,3600.5,0.1392]
[1754062288438,2.7774489,3600.5,3599.7,2.77795439]
[1754062288638,1.04237626,3600.4,3599.1,2.080516]
[1754062288852,2.77719919,3600.8,3599.0,4.546]
[1754062288853,1.0146,3600.3,3599.0,4.546]
[1754062289167,2.77783105,3600.0,3599.2,2.77837253]
[1754062289361,2.77800805,3599.8,3599.1,5.382162]
[1754062289666,1.0146,3599.7,3598.9,7.32457179]
[1754062289870,0.5603,3599.6,3598.6,0.20934432]
[1754062290029,0.5603,3599.6,3598.1,0.5275]
[1754062290030,1.0146,3599.6,3598.7,2.77878122]
[1754062290390,2.77824375,3599.4,3598.7,2.77878122]
[1754062290867,1.0146,3599.3,3598.8,2.77868693]
[1754062291051,2.77817494,3599.5,3598.8,2.77868693]
[1754062291251,1.0146,3599.8,3598.9,4.57278626]
[1754062291440,0.4543,3599.8,3598.3,0.9562]
[1754062291664,2.77814037,3599.6,3598.0,4.751938]
[1754062292001,1.0146,3599.5,3598.8,2.77864697]
[1754062292210,1.0146,3599.5,3599.1,3.0]
[1754062292369,1.0146,3600.0,3599.4,3.0]
[1754062292689,2.77821784,3599.5,3598.3,4.545]
[1754062293007,2.77821784,3599.5,3598.7,2.77878122]
[1754062293008,1.0146,3599.4,3598.7,2.77878122]
[1754062293206,3.23255403,3599.4,3598.7,2.77878122]
[1754062293379,3.79297023,3599.3,3598.6,2.77883209]
[1754062293743,10.44434878,3600.3,3597.9,9.66545674]
[1754062293744,2.77864401,3598.9,3598.2,2.77913754]
[1754062293857,1.0146,3599.2,3598.8,2.77864882]
[1754062294059,1.04237626,3599.1,3597.7,0.29944845]
[1754062294274,1.0146,3599.0,3597.7,5.77951502]
[1754062294475,1.0146,3599.0,3598.4,2.77896506]
[1754062294476,0.5603,3598.9,3598.4,2.77896506]
[1754062294694,0.5603,3598.9,3597.9,3.0]
[1754062294695,0.5603,3598.9,3597.7,3.29391302]
[1754062294890,5.77716765,3600.8,3598.8,2.77870401]
[1754062295093,1.0146,3600.0,3598.2,26.513916]
[1754062295293,0.5603,3599.9,3599.1,2.77841568]
[1754062295488,0.5603,3599.9,3599.5,2.77816191]
[1754062295674,1.0146,3599.8,3599.3,3.0]
[1754062295892,0.55,3599.6,3598.5,3.0]
[1754062296072,2.77829616,3599.4,3598.8,3.0]
[1754062296269,2.77849831,3599.1,3598.4,5.77899447]
[1754062296495,1.0146,3599.0,3598.0,3.0]
[1754062296696,0.5603,3598.9,3598.5,3.0]
[1754062296969,1.0146,3598.8,3598.5,3.0]
[1754062297308,0.4543,3598.8,3598.0,2.77932184]
[1754062297604,0.4543,3599.2,3598.7,2.77872272]
[1754062297791,2.77855639,3599.0,3598.0,3.1836959]
[1754062298108,2.77855639,3599.0,3595.3,1.33277803]
[1754062298109,0.55586,3599.9,3597.8,0.02779476]
[1754062298409,0.1392,3599.1,3599.0,2.77847312]
[1754062298702,0.1392,3599.1,3599.0,3.0]
[1754062298906,0.1392,3599.1,3599.0,5.77854959]
[1754062299106,0.6995,3599.1,3599.0,3.0]
[1754062299265,0.5603,3599.1,3599.0,3.0]
[1754062299609,0.5603,3599.1,3598.6,3.0]
[1754062299610,1.4876555,3599.1,3598.6,3.0]
[1754062299829,1.0146,3599.0,3598.8,2.77868387]
[1754062300096,0.5603,3599.0,3598.8,3.0]
[1754062300300,0.5603,3599.0,3598.6,3.0]
[1754062300511,1.04237626,3598.9,3597.9,3.12411967]
[1754062300822,0.1392,3598.2,3597.9,5.77932477]
[1754062300969,0.1392,3598.2,3598.1,3.0]
[1754062301169,0.1392,3598.2,3598.0,3.0]
[1754062301397,0.1392,3598.2,3597.3,7.85132747]
[1754062301398,1.0146,3598.1,3597.0,4.544]
[1754062301568,0.1392,3598.0,3597.3,0.1392]
[1754062301776,3.3392442,3598.5,3598.0,3.0]
[1754062302118,0.5603,3598.5,3598.3,2.77903964]
[1754062302425,4.9983,3598.8,3598.5,2.77892281]
[1754062302574,4.9983,3598.8,3597.7,2.91875019]
[1754062302575,2.91805844,3598.6,3597.7,2.91875019]
[1754062302772,2.91805844,3598.6,3597.1,3.0]
[1754062302773,2.91826417,3598.4,3597.8,3.0]
[1754062303023,0.58807626,3598.3,3597.8,3.0]
[1754062303224,1.0146,3598.2,3597.9,3.0]
[1754062303496,1.0146,3598.2,3597.6,0.21288924]
[1754062303497,0.5603,3598.1,3597.6,0.21288924]
[1754062303774,0.1392,3597.9,3597.5,5.77970813]
[1754062303980,0.1392,3597.6,3597.4,3.0]
[1754062304190,0.1392,3597.6,3597.5,5.77969821]
[1754062304913,1.1538,3597.6,3597.2,2.78193072]
[1754062305110,0.1392,3597.6,3597.4,3.0]
[1754062305278,4.543,3597.9,3597.4,2.77977578]
[1754062305480,0.1392,3597.5,3597.4,5.77977578]
[1754062306197,0.1392,3597.5,3597.4,3.0]
[1754062306198,0.6994,3597.5,3597.4,3.0]
[1754062306525,1.1704,3597.5,3597.2,0.002]
[1754062306705,0.58797626,3597.4,3597.2,0.002]
[1754062307016,2.94683893,3597.3,3597.2,0.002]
[1754062307205,3.79894282,3597.3,3597.2,0.002]
[1754062307414,0.1392,3597.3,3597.2,0.002]
[1754062307786,5.1032,3597.7,3597.2,0.002]
[1754062308117,0.1392,3597.3,3597.2,0.002]
[1754062308316,1.1704,3597.3,3597.2,0.002]
[1754062309460,0.6994,3597.3,3597.2,0.002]
[1754062309752,4.84816808,3597.3,3597.2,0.002]
[1754062309952,4.52803893,3597.3,3597.2,0.002]
[1754062310518,7.52803893,3597.3,3597.2,0.002]
[1754062310757,4.50026267,3597.3,3597.2,0.002]
[1754062311053,8.49326267,3597.3,3597.2,0.002]
[1754062311216,9.62056241,3597.3,3597.2,0.002]
[1754062311416,10.17056241,3597.3,3597.2,0.002]
[1754062312161,4.59636241,3597.3,3597.2,0.002]
[1754062312316,10.03136241,3597.3,3597.2,0.002]
[1754062313454,5.48836241,3597.3,3597.2,0.002]
[1754062313753,10.03136241,3597.3,3597.2,0.002]
[1754062314761,1.12729974,3597.3,3597.2,0.002]
[1754062315057,4.543,3597.3,3597.2,0.002]
[1754062315260,4.543,3597.3,3597.2,2.78193995]
[1754062316249,4.543,3597.3,3597.2,3.23523995]
[1754062316422,4.543,3597.3,3597.2,3.78913995]
[1754062316632,6.676,3598.4,3597.2,1.0092]
[1754062316884,6.676,3598.4,3598.0,2.77929297]
[1754062317097,4.542,3598.3,3598.0,2.77929297]
[1754062317293,4.542,3598.3,3597.7,0.4533]
[1754062317294,7.32112884,3598.3,3597.7,0.4533]
[1754062317505,2.77929764,3598.1,3597.5,3.0]
[1754062317683,1.04059272,3598.0,3597.3,3.0]
[1754062317885,2.77949343,3597.8,3597.3,3.0]
[1754062318100,4.56977626,3597.7,3597.2,3.002]
[1754062318329,7.34933171,3597.7,3597.2,3.002]
[1754062318609,2.77970813,3597.5,3597.2,0.20967906]
[1754062318781,5.65614823,3597.7,3597.2,0.20967906]
[1754062318971,5.65614823,3597.7,3597.2,0.002]
[1754062319168,4.542,3597.7,3597.2,0.002]
[1754062319402,3.32986267,3597.3,3597.2,0.002]
[1754062319688,3.35763893,3597.3,3597.2,0.002]
[1754062319901,3.89006267,3597.3,3597.2,0.002]
[1754062320202,4.36106267,3597.3,3597.2,0.002]
[1754062320403,10.33159755,3597.3,3597.2,0.002]
[1754062320992,4.75839755,3597.3,3597.2,0.002]
[1754062321197,7.32186267,3597.3,3597.2,0.002]
[1754062321613,8.90306267,3597.3,3597.2,0.002]
[1754062322097,8.43206267,3597.3,3597.2,0.002]
[1754062322292,7.32186267,3597.3,3597.2,0.002]
[1754062322500,7.46106267,3597.3,3597.2,0.002]
[1754062322711,8.02126267,3597.3,3597.2,0.002]
[1754062322884,10.40033714,3597.3,3597.2,0.002]
[1754062323086,10.40033714,3597.3,3597.2,1e-08]
[1754062323614,10.40033714,3597.3,3595.7,3.5539]
[1754062323615,3.32993995,3597.2,3597.1,1e-08]
[1754062323913,4.38891621,3597.2,3597.1,1e-08]
[1754062324074,8.57033995,3597.2,3597.1,1e-08]
[1754062324278,8.01013995,3597.2,3597.1,1e-08]
[1754062324517,2.91913995,3597.2,3597.1,1e-08]
[1754062324810,7.46013995,3597.2,3597.1,1e-08]
[1754062324995,2.91913995,3597.2,3597.1,1e-08]
[1754062325198,4.6802,3597.2,3597.1,0.55390001]
[1754062326275,4.6802,3597.2,3597.1,3.78721724]
[1754062326523,4.6802,3597.2,3597.1,1.00720001]
[1754062327412,4.541,3597.2,3597.1,1.00720001]
[1754062327708,9.45503847,3598.4,3597.7,2.77949976]
[1754062327894,0.1392,3597.9,3597.5,2.77970813]
[1754062328112,4.54,3597.8,3597.7,3.3334536]
[1754062328294,6.676,3598.4,3597.8,2.77946547]
[1754062328622,0.1392,3597.8,3597.1,1e-08]
[1754062328809,2.77968531,3597.6,3597.1,1e-08]
[1754062329013,7.31958046,3597.7,3597.1,1e-08]
[1754062329230,2.77963793,3597.6,3597.1,0.55390001]
[1754062329398,0.1392,3597.2,3597.1,1e-08]
[1754062329727,4.6792,3597.2,3597.1,0.45330001]
[1754062329928,4.6792,3597.2,3597.1,6.23331724]
[1754062330113,7.62147942,3598.4,3597.1,4.00720001]
[1754062330316,0.1392,3597.7,3597.5,3.0]
[1754062330624,4.54,3597.6,3597.1,1e-08]
[1754062330802,2.91908613,3597.3,3597.1,1e-08]
[1754062331005,4.54,3597.2,3597.1,1e-08]
[1754062331392,7.31993995,3597.2,3597.1,1e-08]
[1754062331597,8.34383909,3597.2,3597.1,1e-08]
[1754062331798,8.90403909,3597.2,3597.1,1e-08]
[1754062332123,8.34383909,3597.2,3597.1,1e-08]
[1754062332691,4.54,3597.2,3597.1,1e-08]
[1754062333910,7.31993995,3597.2,3597.1,1e-08]
[1754062334111,4.54,3597.2,3597.1,1e-08]
[1754062334314,7.88013995,3597.2,3597.1,1e-08]
[1754062334628,4.54,3597.2,3597.1,1e-08]
[1754062335128,0.1392,3597.3,3597.2,2.77993995]
[1754062335328,2.77930541,3598.1,3597.2,1.0072]
[1754062335537,0.1392,3597.5,3597.4,2.77972409]
[1754062335740,0.1392,3597.9,3597.7,2.77951895]
[1754062335913,4.539,3597.8,3597.7,3.32981895]
[1754062336112,4.539,3597.8,3597.4,3.38762143]
[1754062336325,4.539,3597.8,3597.7,2.7795536]
[1754062336525,4.539,3597.8,3597.7,0.5503]
[1754062337041,4.539,3597.8,3597.5,0.4687]
[1754062337202,5.00682,3597.8,3597.2,0.5503]
[1754062337402,0.1392,3597.6,3597.2,3.3302088]
[1754062337637,4.538,3597.5,3597.1,0.13920001]
[1754062337824,0.1392,3597.3,3597.1,1e-08]
[1754062338024,4.538,3597.2,3597.1,1e-08]
[1754062338335,4.538,3597.2,3597.1,2.78001724]
[1754062338500,4.538,3597.2,3597.1,1e-08]
[1754062338704,8.35793621,3597.2,3597.1,1e-08]
[1754062338937,8.76145995,3597.2,3597.1,1e-08]
[1754062339136,9.31145995,3597.2,3597.1,1e-08]
[1754062339838,9.44965995,3597.2,3597.1,1e-08]
[1754062340044,4.91265995,3597.2,3597.1,1e-08]
[1754062340241,9.47743621,3597.2,3597.1,1e-08]
[1754062340408,9.44965995,3597.2,3597.1,1e-08]
[1754062340808,7.92385995,3597.2,3597.1,1e-08]
[1754062341317,0.1392,3597.2,3597.1,1e-08]
[1754062341620,4.6772,3597.2,3597.1,0.55030001]
[1754062341809,4.6772,3597.2,3597.1,1.01900001]
[1754062342334,0.1392,3597.2,3597.1,3.79901724]
[1754062342507,4.537,3597.2,3597.1,0.55030001]
[1754062342707,8.31513995,3597.2,3597.1,1e-08]
[1754062342909,9.29643995,3597.2,3597.1,1e-08]
[1754062344414,16.45643995,3597.2,3597.1,1e-08]
[1754062344617,3.55,3597.1,3594.7,0.4687]
[1754062344846,2.78130714,3595.5,3594.8,2.78172559]
[1754062345075,4.537,3595.4,3595.0,3.0]
[1754062345275,4.537,3595.3,3595.0,3.0]
[1754062345555,4.537,3595.3,3595.0,4.019]
[1754062345556,0.1392,3595.1,3595.0,4.019]
[1754062345717,0.1392,3595.1,3595.0,3.5503]
[1754062346117,0.1392,3595.1,3595.0,6.80064116]
[1754062346954,0.1392,3595.1,3595.0,4.019]
[1754062347156,0.1392,3595.1,3595.0,3.5503]
[1754062347461,0.1392,3595.1,3595.0,3.0]
[1754062347661,0.55,3596.3,3595.1,3.0]
[1754062347858,0.1392,3595.8,3595.6,2.78111915]
[1754062348066,4.6762,3595.8,3595.6,2.78111915]
[1754062348266,4.6762,3595.8,3595.1,3.0]
[1754062348267,4.6762,3595.8,3595.5,2.7812437]
[1754062348451,7.2235,3596.5,3595.1,3.4687]
[1754062348452,0.1392,3595.7,3595.6,1.019]
[1754062348651,4.537,3595.7,3595.6,3.80011706]
[1754062348854,4.537,3595.7,3595.6,3.80017699]
[1754062349164,0.1392,3596.2,3596.1,2.7807903]
[1754062349351,4.536,3596.2,3596.1,2.7807903]
[1754062349664,4.536,3596.2,3596.1,5.7807903]
[1754062349851,0.001,3597.5,3596.4,2.78055833]
[1754062350037,0.1392,3597.0,3596.9,2.78017181]
[1754062350366,0.001,3597.5,3597.4,5.7797854]
[1754062350582,0.001,3597.5,3597.4,9.0011344]
[1754062350782,0.001,3597.5,3597.4,6.9379854]
[1754062351352,0.001,3597.5,3597.4,6.3300854]
[1754062351788,0.001,3597.5,3597.4,6.7987854]
[1754062352455,0.001,3597.5,3597.4,6.9379854]
[1754062353275,0.001,3597.5,3597.4,23.0306954]
[1754062353475,0.001,3597.5,3597.4,9.5419864]
[1754062353842,0.001,3597.5,3597.4,9.7481274]
[1754062354473,1e-08,3597.9,3597.4,21.5985794]
[1754062354689,1e-08,3597.9,3597.8,32.77947634]
[1754062354986,1e-08,3597.9,3597.8,20.61629634]
[1754062355174,1e-08,3597.9,3597.8,21.49579634]
[1754062355478,1e-08,3597.9,3597.8,16.96109634]
[1754062355662,1e-08,3597.9,3597.8,16.31047634]
[1754062356043,1e-08,3597.9,3597.8,16.86047634]
[1754062356344,1e-08,3597.9,3597.8,41.88347634]
[1754062356874,0.5445,3600.4,3600.2,2.77755988]
[1754062357087,0.5445,3600.4,3597.8,39.104]
[1754062357088,4.533,3600.8,3599.4,30.0]
[1754062357385,4.533,3600.8,3599.8,3.0]
[1754062357587,4.533,3600.8,3599.8,3.5503]
[1754062357797,4.533,3600.8,3599.8,6.32819205]
[1754062357998,4.533,3600.8,3600.7,2.77723775]
[1754062358216,0.001,3601.3,3600.7,0.20734883]
[1754062358403,1.76141983,3601.2,3599.7,3.0]
[1754062358710,1.76141983,3601.2,3600.6,2.77726112]
[1754062358865,3.32136326,3601.2,3600.6,0.2049276]
[1754062359069,3.32136326,3601.2,3600.3,3.0]
[1754062359070,4.532,3601.1,3600.3,3.0]
[1754062359272,0.001,3601.3,3599.8,2.77791179]
[1754062359273,0.001,3601.3,3601.1,2.77687112]
[1754062359467,0.001,3601.3,3601.2,2.77685216]
[1754062359730,0.001,3601.3,3601.2,2.98509851]
[1754062359871,0.001,3601.3,3601.2,6.53539851]
[1754062360067,0.001,3601.3,3601.2,7.00409851]
[1754062360525,0.001,3601.3,3601.2,5.98509851]
[1754062360672,0.001,3601.3,3601.2,3.0]
[1754062360871,0.5455,3601.3,3600.9,2.77707953]
[1754062361113,0.001,3601.3,3600.8,2.77714263]
[1754062361315,0.27886344,3601.3,3600.8,0.20991617]
[1754062361477,2.77716164,3600.8,3600.0,3.0]
[1754062361679,2.777347,3600.6,3600.0,0.20580425]
[1754062361887,0.02777626,3600.5,3599.2,0.4687]
[1754062362102,5.0755,3600.4,3599.4,2.77824081]
[1754062362423,5.0755,3600.4,3599.8,2.77787973]
[1754062362618,4.53,3600.3,3599.4,0.32469408]
[1754062362773,4.53,3600.3,3599.7,2.77793802]
[1754062362976,4.53,3600.3,3599.2,1.019]
[1754062363281,4.9613,3600.3,3598.8,0.5503]
[1754062363477,4.9613,3600.3,3598.9,2.77856873]
[1754062363478,2.77808027,3599.7,3598.9,2.77856873]
[1754062363678,0.5445,3599.9,3598.8,4.709458]
[1754062363892,4.529,3599.8,3598.9,0.5178158]
[1754062364111,4.529,3599.8,3598.7,0.4687]
[1754062364112,7.30693898,3599.8,3599.0,2.77848877]
[1754062364323,4.529,3599.8,3599.0,2.77849693]
[1754062364531,2.77744613,3600.5,3598.9,12.718444]
[1754062364532,7.11680175,3601.5,3599.1,0.02778472]
[1754062364813,4.529,3600.1,3599.5,3.0]
[1754062365016,0.5445,3600.5,3599.1,0.4687]
[1754062365313,4.529,3600.4,3599.5,0.5503]
[1754062365518,0.1392,3600.0,3599.6,3.0]
[1754062365676,0.1392,3600.0,3599.6,2.7780665]
[1754062366019,4.529,3600.4,3591.6,9.57367587]
[1754062366020,0.1392,3599.7,3598.9,0.20592732]
[1754062366221,0.4529,3600.3,3598.9,1.18972732]
[1754062366381,0.1392,3599.5,3599.0,0.1392]
[1754062366780,0.1392,3599.1,3597.5,2.77965267]
[1754062367089,2.7787841,3598.7,3597.4,0.02779785]
[1754062367305,0.1392,3597.9,3597.4,0.34935637]
[1754062367517,0.1392,3597.9,3597.4,2.7797854]
[1754062367702,0.1392,3597.9,3597.3,0.1392]
[1754062367888,4.528,3598.1,3596.8,0.9838]
[1754062368088,4.528,3598.1,3597.4,2.7797854]
[1754062368089,0.1392,3597.5,3597.4,2.7797854]
[1754062368291,0.1392,3597.5,3597.4,3.0]
[1754062368488,0.1392,3597.5,3597.2,0.21347331]
[1754062368695,0.1392,3597.3,3596.8,5.91943387]
[1754062368903,0.1392,3597.3,3597.1,3.0]
[1754062369088,0.1392,3597.3,3596.9,0.59214339]
[1754062369296,0.4184,3598.2,3597.2,2.77993995]
[1754062369297,3.19757116,3598.2,3597.2,2.77993995]
[1754062369603,4.528,3598.1,3597.4,2.77975124]
[1754062369799,0.515,3598.3,3597.0,1.01160094]
[1754062369800,0.1392,3597.8,3597.3,0.1392]
[1754062369977,0.1392,3597.8,3597.7,2.7795536]
[1754062370180,6.675,3598.6,3597.9,2.77939909]
[1754062370181,4.528,3598.0,3597.9,2.77939909]
[1754062370381,0.1392,3598.1,3598.0,2.77932184]
[1754062370579,0.1392,3598.1,3597.8,2.7794762]
[1754062370580,0.6542,3598.1,3597.8,2.7794762]
[1754062370778,0.1392,3598.1,3597.8,3.0]
[1754062370992,0.1392,3598.1,3598.0,5.77932184]
[1754062371408,4.528,3598.3,3598.2,2.77916736]
[1754062371639,0.1392,3598.3,3598.2,5.77916736]
[1754062371786,3.29315409,3599.6,3598.3,3.0]
[1754062371981,0.132,3599.5,3599.3,2.77828764]
[1754062372313,0.132,3599.5,3599.4,2.77824081]
[1754062372696,4.528,3599.7,3599.0,2.77854959]
[1754062373016,4.528,3599.7,3599.5,2.77812914]
[1754062373318,4.528,3599.7,3598.8,0.5092]
[1754062373537,4.528,3599.7,3598.8,0.20575813]
[1754062373538,5.6485,3599.7,3598.8,0.20575813]
[1754062373684,0.515,3599.6,3598.5,3.0]
[1754062373883,0.515,3599.6,3599.1,2.77842732]
[1754062374101,4.528,3599.5,3599.1,2.77842732]
[1754062374622,4.528,3599.5,3599.4,2.77824081]
[1754062374991,4.528,3599.5,3599.3,2.77830557]
[1754062375191,4.528,3599.5,3599.2,2.77837007]
[1754062375414,1.1205,3599.7,3599.4,2.77824081]
[1754062375599,4.528,3599.6,3598.8,2.80649105]
[1754062375805,4.528,3599.6,3599.4,2.77816778]
[1754062376004,4.528,3599.6,3599.5,2.77816363]
[1754062376338,1.1205,3599.7,3599.5,2.77816363]
[1754062376488,4.527,3599.6,3599.5,2.77816363]
[1754062376694,4.527,3599.6,3599.4,2.77821464]
[1754062376927,4.527,3599.6,3598.8,2.98275467]
[1754062376928,4.527,3599.5,3599.3,2.77824646]
[1754062377308,4.527,3599.5,3599.4,2.77824081]
[1754062377500,4.527,3599.5,3599.3,2.77830823]
[1754062378061,0.55,3599.2,3597.2,0.5092]
[1754062378240,2.77923158,3598.2,3597.3,0.20792818]
[1754062378539,4.527,3598.1,3597.8,2.77946875]
[1754062378739,0.9624,3598.0,3597.3,2.98357767]
[1754062379040,0.55,3597.8,3596.6,0.002]
[1754062379241,2.77961079,3597.7,3596.9,2.78010522]
[1754062379410,3.29469412,3597.6,3597.0,3.0]
[1754062379752,4.527,3597.5,3596.6,0.002]
[1754062380044,0.515,3597.4,3596.6,0.21393288]
[1754062380243,0.515,3597.4,3596.7,2.78031007]
[1754062380244,1.06671763,3597.4,3596.7,2.78031007]
[1754062380444,1.06671763,3597.4,3596.8,2.78019591]
[1754062381007,1.1047799,3598.0,3596.6,0.002]
[1754062381208,4.527,3597.9,3597.8,2.77947634]
[1754062381433,4.527,3598.2,3597.5,0.4746]
[1754062381645,4.527,3598.2,3597.5,0.9838]
[1754062381944,0.1392,3597.7,3597.5,0.20373347]
[1754062382110,0.1392,3597.7,3597.6,5.77963086]
[1754062382310,4.527,3598.2,3598.1,2.7792446]
[1754062382905,0.515,3599.0,3598.1,3.0]
[1754062383108,4.527,3598.9,3598.2,3.0]
[1754062383348,4.527,3598.9,3598.4,2.779005]
[1754062383530,4.527,3598.9,3597.6,1.123]
[1754062383531,0.1392,3598.3,3598.2,2.77909383]
[1754062384153,0.1392,3598.3,3598.1,3.0]
[1754062384447,0.1392,3598.3,3596.3,0.002]
[1754062384448,0.9624,3598.2,3597.5,3.20498529]
[1754062384631,4.527,3598.3,3597.1,0.1392]
[1754062384836,0.1392,3597.9,3597.6,2.77962832]
[1754062385034,0.1392,3597.9,3597.7,2.77953779]
[1754062385364,0.1392,3597.9,3597.7,2.77953891]
[1754062385671,0.1392,3597.9,3597.4,0.1392]
[1754062385672,0.1392,3597.8,3597.4,2.77974142]
[1754062385860,2.77710719,3600.9,3598.0,3.0]
[1754062386169,2.77710719,3600.9,3597.5,5.8074977]
[1754062386170,0.55,3599.5,3598.1,0.1392]
[1754062386365,0.1392,3598.5,3598.4,5.77896084]
[1754062386662,0.6542,3598.5,3597.7,3.0]
[1754062386871,1.1016,3598.5,3597.5,0.6484]
[1754062387015,1.1016,3598.5,3597.4,2.77975512]
[1754062387016,1.065,3598.4,3597.4,2.77975512]
[1754062387212,1.065,3598.4,3597.2,0.20585853]
[1754062387213,0.1392,3597.6,3597.2,0.20585853]
[1754062387425,0.1392,3597.3,3597.0,3.0]
[1754062387649,4.527,3597.7,3597.2,3.1392]
[1754062387851,0.1392,3597.8,3597.7,5.7795536]
[1754062388151,0.1392,3597.8,3597.7,6.7633536]
[1754062388312,0.1392,3597.8,3597.7,20.1644326]